Cogmind - Beta 14 @@@ ROGUE MODE // 2024.08.14 @ 21:50:25 Player: Vinsi Result: Destroyed by H-71 Marshal with Heavy Mass Driver Performance ------------- Evolutions (5) 2500 Regions Visited (8) 1600 Robots Destroyed (1) 5 Value Destroyed (45) 45 Prototype IDs (0) 0 Alien Tech Used (0) 0 Bonus (200) 200 TOTAL SCORE: 4350 Bonus ------- Pacifist 200 Cogmind --------- Core Integrity 0/1000 Matter 276/300 Energy 99/100 System Corruption 0% Temperature Cool (0) Movement Core (50) Location -5/Factory Parts ------- > --- POWER (11) ------- (None) > --- PROPULSION (2) --- (None) > --- UTILITY (2) ------ (None) > --- WEAPON (2) ------- (None) > --- INVENTORY (5) ---- (None) Peak State ------------ > --- POWER ------------ Backup Power I Backup Power I > --- PROPULSION ------- Backup Propulsion I Backup Propulsion I > --- UTILITY ---------- Backup Plating I Backup Plating I > --- WEAPON ----------- Backup Laser I Backup Laser I > --- INVENTORY -------- (None) [Rating: 8] Favorites ----------- Power Backup Power I Engine Backup Power I Propulsion Backup Propulsion I Hover Unit Backup Propulsion I Utility Backup Plating I Protection Backup Plating I Weapon Backup Laser I Energy Gun Backup Laser I Build | -11 -10 -10 -9 -8 -8 -7 -6 -5 ------- Run | Yrd Mat Min Mat Mat Sto Fac Fac Fac Slots Evolved 10 | . . . 2 2 . 2 2 2 Power 10 | . . . 2 2 . 2 2 2 Propulsion . | . . . . . . . . . Utility . | . . . . . . . . . Weapon . | . . . . . . . . . Parts Attached . | . . . . . . . . . Power . | . . . . . . . . . Engine . | . . . . . . . . . Core . | . . . . . . . . . Reactor . | . . . . . . . . . Propulsion . | . . . . . . . . . Treads . | . . . . . . . . . Leg . | . . . . . . . . . Wheel . | . . . . . . . . . Hover . | . . . . . . . . . Flight . | . . . . . . . . . Utility . | . . . . . . . . . Device . | . . . . . . . . . Storage . | . . . . . . . . . Processor . | . . . . . . . . . Hackware . | . . . . . . . . . Protection . | . . . . . . . . . Artifact . | . . . . . . . . . Weapon . | . . . . . . . . . Energy Gun . | . . . . . . . . . Energy Cannon . | . . . . . . . . . Ballistic Gun . | . . . . . . . . . Ballistic Cannon . | . . . . . . . . . Launcher . | . . . . . . . . . Special Weapon . | . . . . . . . . . Impact Weapon . | . . . . . . . . . Slashing Weapon . | . . . . . . . . . Piercing Weapon . | . . . . . . . . . Special Melee Weapon . | . . . . . . . . . Unidentified Prototypes . | . . . . . . . . . Parts Lost 8 | . . . 7 1 . . . . Power 2 | . . . 2 . . . . . Propulsion 2 | . . . 2 . . . . . Utility 2 | . . . 2 . . . . . Weapon 2 | . . . 1 1 . . . . Highest Loss Streak 7 | . . . 6 7 . . . . To Critical Strikes . | . . . . . . . . . Average Slot Usage (%) 11 | . . . 58 3 . . . . Engine 2 | . . . 15 . . . . . Hover 2 | . . . 12 . . . . . Protection 2 | . . . 15 . . . . . Energy Gun 3 | . . . 15 3 . . . . Peak Build Rating 8 | . . . 8 1 . . . . Average Rating 1 | . . . 5 . . . . . On Entrance . | . . . . 1 . . . . Naked Turns 862 | . 30 45 44 39 65 236 163 240 Heaviest Build 6 | . . . 6 1 . . . . Greatest Support 12 | 3 3 3 12 3 3 3 3 3 Greatest Overweight (x) . | . . . . . . . . . Average Overweight (x) . | . . . . . . . . . Largest Inventory Capacity 5 | 5 5 5 5 5 5 5 5 5 Average Capacity 5 | 5 5 5 5 5 5 5 5 5 Most Carried . | . . . . . . . . . Average Carried . | . . . . . . . . . Final Capacity 5 | 5 5 5 5 5 5 5 5 5 Final Carried . | . . . . . . . . . Class Distribution -------------------- 100% | Mutant Dominant Class ---------------- Mutant | -10/Materials Mutant | -10/Mines Mutant | -9/Materials Mutant | -8/Materials Mutant | -8/Storage Mutant | -7/Factory Mutant | -6/Factory Mutant | -5/Factory Resources | -11 -10 -10 -9 -8 -8 -7 -6 -5 ----------- Run | Yrd Mat Min Mat Mat Sto Fac Fac Fac Matter Collected 135 | 32 . . 57 . . . . 46 Remotely . | . . . . . . . . . Salvage Created 57 | . . . 57 . . . . . Parts 5 | . . . 5 . . . . . Haulers Intercepted . | . . . . . . . . . Recyclers Shooed . | . . . . . . . . . Parts Field Recycled . | . . . . . . . . . Retrieved Matter . | . . . . . . . . . Parts Self-Destructed . | . . . . . . . . . Prevented . | . . . . . . . . . Kills | -11 -10 -10 -9 -8 -8 -7 -6 -5 ------- Run | Yrd Mat Min Mat Mat Sto Fac Fac Fac Combat Hostiles Destroyed 1 | . . . 1 . . . . . Guns 1 | . . . 1 . . . . . Classes Destroyed 1 | . . . 1 . . . . . Sentry 1 | . . . 1 . . . . . Best Kill Streak 1 | . . . 1 . . . . . Combat Bots Only 1 | . . . 1 . . . . . Max Kills in Single Turn 1 | . . . 1 . . . . . Gunslinging . | . . . . . . . . . Exploded . | . . . . . . . . . Melee . | . . . . . . . . . Uniques/NPCs Destroyed . | . . . . . . . . . Combat | -11 -10 -10 -9 -8 -8 -7 -6 -5 -------- Run | Yrd Mat Min Mat Mat Sto Fac Fac Fac Hostile Shots Fired 288 | . 1 2 55 23 . 74 63 70 Missed 119 | . . 1 21 11 . 31 26 29 Damage Taken 2743 | . 17 8 396 187 . 505 608 1022 Core 2395 | . 17 8 66 169 . 505 608 1022 Absorbed by Shields 40 | . . . . . . 40 . . Core Remaining (%) 66 | 100 . 90 83 . 69 27 28 . Volleys Fired 6 | . . . 6 . . . . . Largest 2 | . . . 2 . . . . . Hottest 60 | . . . 60 . . . . . Shots Fired 12 | . . . 12 . . . . . Gun 12 | . . . 12 . . . . . Cannon . | . . . . . . . . . Launcher . | . . . . . . . . . Special . | . . . . . . . . . Kinetic . | . . . . . . . . . Thermal 12 | . . . 12 . . . . . Explosive . | . . . . . . . . . Electromagnetic . | . . . . . . . . . Robot Hit Streak 7 | . . . 7 . . . . . Robot Miss Streak 1 | . . . 1 . . . . . Penetration Max . | . . . . . . . . . Secondary Targets . | . . . . . . . . . Shots Hit Robots 9 | . . . 9 . . . . . Core Hits 3 | . . . 3 . . . . . Critical Kills . | . . . . . . . . . Critical Parts Destroyed . | . . . . . . . . . Critical Strikes . | . . . . . . . . . Melee Attacks . | . . . . . . . . . Impact . | . . . . . . . . . Slashing . | . . . . . . . . . Piercing . | . . . . . . . . . Sneak Attacks . | . . . . . . . . . Combat Hostiles . | . . . . . . . . . Follow-up Attacks . | . . . . . . . . . Damage Inflicted 93 | . . . 87 . . 6 . . Guns 83 | . . . 83 . . . . . Cannons . | . . . . . . . . . Explosions . | . . . . . . . . . Melee . | . . . . . . . . . Ramming 10 | . . . 4 . . 6 . . Kinetic . | . . . . . . . . . Thermal 83 | . . . 83 . . . . . Explosive . | . . . . . . . . . Electromagnetic . | . . . . . . . . . Impact . | . . . . . . . . . Slashing . | . . . . . . . . . Piercing . | . . . . . . . . . Highest Corruption 3 | . . . . . . 3 1 . Average Corruption 2 | . . . . . . 2 1 . Corruption Purged . | . . . . . . . . . Corruption Blocked . | . . . . . . . . . Effects 2 | . . . . . . 1 1 . Message Errors 1 | . . . . . . . 1 . Data Loss (minor) 1 | . . . . . . 1 . . Overload Shots . | . . . . . . . . . Overflow Damage . | . . . . . . . . . Projectiles . | . . . . . . . . . Explosions . | . . . . . . . . . Melee . | . . . . . . . . . Knockbacks . | . . . . . . . . . Impact . | . . . . . . . . . Kinetic . | . . . . . . . . . Secondary . | . . . . . . . . . Self-Inflicted Damage 5 | . . . 2 . . 3 . . Shots . | . . . . . . . . . Rammed 2 | . . . 1 . . 1 . . Targets Rammed 2 | . . . 1 . . 1 . . Kicked . | . . . . . . . . . Crushed . | . . . . . . . . . Highest Temperature 25 | . . . 25 . . 11 . . Average Temperature 14 | . . . 14 . . 11 . . Received Heat Transfer 387 | . 9 . 141 27 . 93 9 108 Siege Activations . | . . . . . . . . . Robots Corrupted . | . . . . . . . . . Combat Hostiles . | . . . . . . . . . Parts Fried . | . . . . . . . . . Impact Corruptions . | . . . . . . . . . Robots Melted . | . . . . . . . . . Combat Hostiles . | . . . . . . . . . Parts Melted . | . . . . . . . . . Heat Transferred 333 | . . . 333 . . . . . Parts Sabotaged . | . . . . . . . . . Parts Stolen . | . . . . . . . . . Parts Stripped . | . . . . . . . . . Power Chain Reactions . | . . . . . . . . . Alert | -11 -10 -10 -9 -8 -8 -7 -6 -5 ------- Run | Yrd Mat Min Mat Mat Sto Fac Fac Fac Peak Influence 350 | . . 30 52 67 57 130 288 350 Initial 140 | . . . 11 2 27 25 63 140 Average 100 | . . 13 25 20 35 63 122 254 Maximum Alert Level 1 | . . . . . . . 1 1 Low Security (%) 83 | 100 100 100 100 100 100 100 86 36 Level 1 16 | . . . . . . . 13 63 Level 2 . | . . . . . . . . . Level 3 . | . . . . . . . . . Level 4 . | . . . . . . . . . Level 5 . | . . . . . . . . . High Security . | . . . . . . . . . Max Security . | . . . . . . . . . Squads Dispatched 4 | . . . 1 . . 1 1 1 Investigation 2 | . . . . . . 1 . 1 Extermination . | . . . . . . . . . Reinforcement 2 | . . . 1 . . . 1 . Assault . | . . . . . . . . . Garrison . | . . . . . . . . . Intercept . | . . . . . . . . . Searches Triggered . | . . . . . . . . . Construction Impeded . | . . . . . . . . . Haulers Reinforced . | . . . . . . . . . Active Scanning Responses . | . . . . . . . . . Cargo Convoy Interrupts . | . . . . . . . . . Stealth | -11 -10 -10 -9 -8 -8 -7 -6 -5 --------- Run | Yrd Mat Min Mat Mat Sto Fac Fac Fac Distress Signals 4 | . . . . . 1 1 . 2 Communications Jammed . | . . . . . . . . . Distress Signals . | . . . . . . . . . Times Spotted 69 | . 1 5 13 2 2 9 16 21 Peak Tracking Total 11 | . 2 3 11 2 4 5 5 11 Tactical Retreats 11 | . . 1 . . . 3 5 2 Traps | -11 -10 -10 -9 -8 -8 -7 -6 -5 ------- Run | Yrd Mat Min Mat Mat Sto Fac Fac Fac Traps Triggered 8 | . . . 1 . . 2 1 4 Indirectly . | . . . . . . . . . Trap Hack Attempts . | . . . . . . . . . Triggered . | . . . . . . . . . Disarmed . | . . . . . . . . . Reprogrammed . | . . . . . . . . . Reused . | . . . . . . . . . Traps Extracted . | . . . . . . . . . Installed . | . . . . . . . . . Triggered . | . . . . . . . . . Machines | -11 -10 -10 -9 -8 -8 -7 -6 -5 ---------- Run | Yrd Mat Min Mat Mat Sto Fac Fac Fac Machines Disabled . | . . . . . . . . . Max in Single Turn . | . . . . . . . . . Machines Repaired . | . . . . . . . . . Machines Dismantled . | . . . . . . . . . Machines Sabotaged . | . . . . . . . . . Overloaded Fab Kills . | . . . . . . . . . Hacking | -11 -10 -10 -9 -8 -8 -7 -6 -5 --------- Run | Yrd Mat Min Mat Mat Sto Fac Fac Fac Machines Accessed 6 | . . . 1 . 1 3 1 . Terminals 5 | . . . . . 1 3 1 . Fabricators . | . . . . . . . . . Repair Stations 1 | . . . 1 . . . . . Recycling Units . | . . . . . . . . . Scanalyzers . | . . . . . . . . . Garrison Access . | . . . . . . . . . Total Hacks 9 | . . . 1 . 1 6 1 . Successful 3 | . . . 1 . 1 . 1 . Failed 6 | . . . . . . 6 . . Catastrophic 1 | . . . . . . 1 . . Database Lockouts . | . . . . . . . . . Manual . | . . . . . . . . . Terminals 8 | . . . . . 1 6 1 . Fabricators . | . . . . . . . . . Repair Stations 1 | . . . 1 . . . . . Recycling Units . | . . . . . . . . . Scanalyzers . | . . . . . . . . . Garrison Access . | . . . . . . . . . Terminal Hacks 2 | . . . . . 1 . 1 . Open Door 1 | . . . . . 1 . . . Open DSF 1 | . . . . . . . 1 . Fabricator Hacks . | . . . . . . . . . Repair Station Hacks 1 | . . . 1 . . . . . Refit 1 | . . . 1 . . . . . Recycling Unit Hacks . | . . . . . . . . . Scanalyzer . | . . . . . . . . . Garrison Access Hacks . | . . . . . . . . . Unauthorized Hacks . | . . . . . . . . . Terminals . | . . . . . . . . . Fabricators . | . . . . . . . . . Repair Stations . | . . . . . . . . . Recycling Units . | . . . . . . . . . Scanalyzers . | . . . . . . . . . Garrison Access . | . . . . . . . . . Data Cores Recovered . | . . . . . . . . . Used . | . . . . . . . . . Hacking Detections 4 | . . . . . . 3 1 . Full Trace Events 1 | . . . . . . 1 . . Feedback Events . | . . . . . . . . . Feedback Blocked . | . . . . . . . . . Robot Schematics Acquired . | . . . . . . . . . Robots Built . | . . . . . . . . . Authchips . | . . . . . . . . . Time . | . . . . . . . . . Total Robot Build Rating . | . . . . . . . . . Part Schematics Acquired . | . . . . . . . . . Parts Built . | . . . . . . . . . Authchips . | . . . . . . . . . Time . | . . . . . . . . . Total Part Build Rating . | . . . . . . . . . Parts Repaired . | . . . . . . . . . Time . | . . . . . . . . . Parts Recycled . | . . . . . . . . . Recycled Matter . | . . . . . . . . . Retrieved Matter . | . . . . . . . . . Retrieved Components . | . . . . . . . . . Parts Scanalyzed . | . . . . . . . . . Part Schematics Acquired . | . . . . . . . . . Parts Damaged . | . . . . . . . . . Bothacking | -11 -10 -10 -9 -8 -8 -7 -6 -5 ------------ Run | Yrd Mat Min Mat Mat Sto Fac Fac Fac Used RIF Installer . | . . . . . . . . . Robots Hacked . | . . . . . . . . . Non-combat . | . . . . . . . . . Combat . | . . . . . . . . . Robot Hacks Applied . | . . . . . . . . . Relay Couplers Released . | . . . . . . . . . Fabnet Peak Effective % . | . . . . . . . . . Robots Rewired . | . . . . . . . . . Allies Hacked . | . . . . . . . . . Hacks Repelled . | . . . . . . . . . Allies | -11 -10 -10 -9 -8 -8 -7 -6 -5 -------- Run | Yrd Mat Min Mat Mat Sto Fac Fac Fac Total Allies . | . . . . . . . . . Largest Group . | . . . . . . . . . Highest-Rated Group . | . . . . . . . . . Highest-Rated Ally . | . . . . . . . . . Total Orders . | . . . . . . . . . Ally Attacks . | . . . . . . . . . Total Damage . | . . . . . . . . . Kills . | . . . . . . . . . Allies Corrupted . | . . . . . . . . . Allies Melted . | . . . . . . . . . Intel | -11 -10 -10 -9 -8 -8 -7 -6 -5 ------- Run | Yrd Mat Min Mat Mat Sto Fac Fac Fac Robot Analysis Total . | . . . . . . . . . Derelict Logs Recovered 1 | . . 1 . . . . . . Drone Launches . | . . . . . . . . . Drone Recoveries . | . . . . . . . . . Exploration | -11 -10 -10 -9 -8 -8 -7 -6 -5 ------------- Run | Yrd Mat Min Mat Mat Sto Fac Fac Fac Turns Passed 1043 | 10 30 45 201 53 65 236 163 240 Spaces Moved 1767 | 20 60 86 271 83 130 379 305 433 Core 1605 | 20 60 86 109 83 130 379 305 433 Treads . | . . . . . . . . . Legs . | . . . . . . . . . Wheels . | . . . . . . . . . Hover 162 | . . . 162 . . . . . Flight . | . . . . . . . . . Fastest Speed 50 | 50 50 50 50 50 50 50 50 50 Average Speed 52 | 50 50 50 66 50 50 50 50 50 Slowest Speed 80 | 50 50 50 80 50 50 50 50 50 Overloaded Moves . | . . . . . . . . . Propulsion Burnouts . | . . . . . . . . . Robots Hopped . | . . . . . . . . . Cave-ins Triggered . | . . . . . . . . . Exploration Rate (%) 18 | 3 18 26 28 10 28 17 16 16 Regions Visited 8 Branch Regions 2 Pre-discovered Areas . | . . . . . . . . . Known Exits Taken 1 | . . . 1 . . . . . Unknown Exits Taken 7 | 1 1 1 . 1 1 1 1 . Scrap Searched . | . . . . . . . . . Spaces Dug . | . . . . . . . . . Terrain Destroyed . | . . . . . . . . . Melee . | . . . . . . . . . Projectile . | . . . . . . . . . AOE . | . . . . . . . . . Terrain Rammed . | . . . . . . . . . Walls Destroyed . | . . . . . . . . . Machines Disabled . | . . . . . . . . . Actions | -11 -10 -10 -9 -8 -8 -7 -6 -5 --------- Run | Yrd Mat Min Mat Mat Sto Fac Fac Fac Total 1860 | 19 59 87 279 93 129 424 314 456 Wait 69 | . . 2 2 11 . 21 10 23 Move 1759 | 19 59 85 270 82 129 378 304 433 Hop . | . . . . . . . . . Pick Up . | . . . . . . . . . Fast Attach . | . . . . . . . . . Attach . | . . . . . . . . . Detach . | . . . . . . . . . Swap . | . . . . . . . . . Drop . | . . . . . . . . . Fire 6 | . . . 6 . . . . . Melee . | . . . . . . . . . Ram 2 | . . . 1 . . 1 . . Kick . | . . . . . . . . . Crush . | . . . . . . . . . Escape Stasis 24 | . . . . . . 24 . . Rewire . | . . . . . . . . . Trap . | . . . . . . . . . Miscellaneous . | . . . . . . . . . Route ------- -11/Scrapyard -10/Materials -10/Mines -9/Materials (discovered 2 exits: *Mat x2) -8/Materials -8/Storage -7/Factory -6/Factory -5/Factory History --------- Turn | Location | Event 4 | -11/Scrapyard | Discovered new exit (range 13) 11 | -11/Scrapyard | Entered Materials 36 | -10/Materials | Discovered new exit (range 10) 41 | -10/Materials | Entered Mines 80 | -10/Mines | Learned location of 1 exit from Materials 85 | -10/Mines | Discovered new exit (range 5) 86 | -10/Mines | Entered Materials 86 | -9/Materials | Evolved 2 slots: Power x2 87 | -9/Materials | Identified exit to Materials 282 | -9/Materials | Discovered exit to Materials (range 11) 287 | -9/Materials | Entered another Materials area 287 | -8/Materials | Evolved 2 slots: Power x2 298 | -8/Materials | Discovered new exit (range 10) 305 | -8/Materials | Build established: Mutant 332 | -8/Materials | Lost 7 parts (2p1n2u2w) 340 | -8/Materials | Entered Storage 396 | -8/Storage | Discovered new exit (range 16) 405 | -8/Storage | Entered Factory 405 | -7/Factory | Evolved 2 slots: Power x2 627 | -7/Factory | Discovered new exit (range 13) 636 | -7/Factory | Core integrity fell below 50% 641 | -7/Factory | Entered another Factory area 641 | -6/Factory | Evolved 2 slots: Power x2 752 | -6/Factory | Core integrity fell below 50% 798 | -6/Factory | Discovered new exit (range 10) 804 | -6/Factory | Entered another Factory area 804 | -5/Factory | Evolved 2 slots: Power x2 994 | -5/Factory | Core integrity fell below 50% 1041 | -5/Factory | Core integrity fell below 20% 1044 | -5/Factory | Destroyed by H-71 Marshal with Heavy Mass Driver Last Messages --------------- Slug penetrates Wall. W-25 Informer sends out distress signal. Triggered Segregator Trap. Arcs of energy rise from the floor. W-25 Informer sends out distress signal. Slug penetrates Wall. Penetrated by Slug. K-01 Serf destroyed. Penetrated by Slug. Acquired 21 matter. Penetrated by Slug. W-25 Informer destroyed. Acquired 25 matter. Slug penetrates Wall. Triggered Alarm Trap. An alarm sounds. ALERT: Alarm triggered, dispatching investigation squad. Knocked back. Penetrated by Slug. Map ----- +----------------------------------------------------+ | ???????????????????????????????????????????? | | ???????????????????????????????????????????? | | ???????????????????????????????????????????? | | ???????????????????????????????????????????? | | ???????????????????????????????????????????? | | ???????????????????????????????????????????? | | ???????????????????????????????????????????? | | ???????????????????????????????????????????? | | ???????????????????????????????????????????? | | ???????????????????????????????????????????? | | ???????????????????????????????????????????? | | ???????????????????????????????????????????? | | ???????????????????????????????????????????? | | ???????????????????????????????????????????? | | ???????????????????????????????????????????? | | ??????????????????????? ??? ???????????????? | | ??????????????????????? """ #??????????????? | | ??????????????????????? #??????????????? | | ##+##?????????????????? """ #??????????????? | | # #???????????????????""" #??????????????? | | !#???????????????????""" #??????????????? | | #??????????????????? #???? ###??????? | | "" #??????????????????? ??? #??????? | | "" #####################;+## = #??????? | | "" g % % % % #??????? | | A @ H +??????? | | g t #??????? | | #+#########+##############+## #??????? | | ??????????????????????????????? #??????? | | ????????????????????????????????? ##??????? | | ???????????????????????????????????T#??????? | | ???????????????????????????????????????????? | | ???????????????????????????????????????????? | | ???????????????????????????????????????????? | | ???????????????????????????????????????????? | | ???????????????????????????????????????????? | | ???????????????????????????????????????????? | | ???????????????????????????????????????????? | | ???????????????????????????????????????????? | | ???????????????????????????????????????????? | | ???????????????????????????????????????????? | | ???????????????????????????????????????????? | | ???????????????????????????????????????????? | | ???????????????????????????????????????????? | | ???????????????????????????????????????????? | | ???????????????????????????????????????????? | | ???????????????????????????????????????????? | | ???????????????????????????????????????????? | | ???????????????????????????????????????????? | | ???????????????????????????????????????????? | +----------------------------------------------------+ Best States ------------- Heat Dissipation 40 Energy Generation 13 Energy Capacity 100 Matter Stores 276 Matter Capacity 300 Sight Range 16 Terrain Scan Density 10 Armor Coverage 160 Evasion (%) 50 Item Schematics ----------------- None Robot Schematics ------------------ None Fabricated ------------ Nothing Alien Tech Used ----------------- None Achievements -------------- None Challenges ------------ None Game ------ Seed LightningBarrageBasin Manual? 0 Play Time 00:19:26 Cumulative 5.6 hours Start 2024.08.14 @ 21:33:55 End 2024.08.14 @ 21:50:25 Sessions 1 Manual Loads 0 Difficulty Rogue Special Mode None Game No. 15 Rogue 15 Adventurer 0 Explorer 0 Win Type - Total 0 Types 0/0/0/0/0/0/0/0/0 Lore% 3 Gallery% 12 Achievement% 12 Wizard Run 0 Options --------- Layout 1 ASCII 0 Keyboard 0 Movement Mouse Keybinds 0 Fullscreen 2 Font 32/SmallcapsGlow Map View 50x40 Zoom Use 0% Tactical HUD 0 Map Filters NONE Filters NONE Steam 1 RUN: f758a9f2-c87c-4350-9fd7-c0bbd1b5626c